Cogmind - Beta 15 @@@ ROGUE MODE // 2025.08.17 @ 12:03:32 Player: WitherScout Result: Destroyed by B-75 Beast with Magnetic Acceleration Cannon Performance ------------- Evolutions (5) 2500 Regions Visited (7) 1400 Robots Destroyed (16) 80 Value Destroyed (215) 215 Prototype IDs (1) 20 Alien Tech Used (0) 0 Bonus (0) 0 TOTAL SCORE: 4215 Bonus ------- None Cogmind --------- Core Integrity 0/1000 Matter 73/300 Energy 99/100 System Corruption 0% Temperature Cool (0) Movement Core (50) Location -5/Factory Parts ------- > --- POWER (1) -------- (None) > --- PROPULSION (6) --- (None) > --- UTILITY (8) ------ (None) > --- WEAPON (2) ------- (None) > --- INVENTORY (5) ---- Micro Nuclear Core Micro Nuclear Core Fission Core Fission Core Peak State ------------ > --- POWER ------------ Micro Nuclear Core > --- PROPULSION ------- VTOL Module VTOL Module VTOL Module Xenon Bombardment Thruster Xenon Bombardment Thruster Xenon Bombardment Thruster > --- UTILITY ---------- Thermal Generator Improved Heat Sink Small Storage Unit Improved Sensor Array > --- WEAPON ----------- Heavy Assault Rifle > --- INVENTORY -------- Micro Nuclear Core Micro Nuclear Core Flight Unit Flight Unit Flight Unit Flight Unit Grenade Launcher [Rating: 35] Favorites ----------- Power Micro Nuclear Core Engine Ion Engine Power Core Micro Nuclear Core Propulsion VTOL Module Flight Unit VTOL Module Utility Small Storage Unit Device Improved Sensor Array Storage Small Storage Unit Weapon Grenade Launcher Ballistic Gun Heavy Assault Rifle Launcher Grenade Launcher Build | -11 -10 -10 -9 -8 -7 -6 -5 ------- Run | Yrd Mat Min Mat Mat Fac Fac Fac Slots Evolved 10 | . . . 2 2 2 2 2 Power . | . . . . . . . . Propulsion 4 | . . . 2 2 . . . Utility 6 | . . . . . 2 2 2 Weapon . | . . . . . . . . Parts Attached 35 | . . 1 8 4 8 9 5 Power 5 | . . . 2 1 . 2 . Engine 2 | . . . 2 . . . . Core 3 | . . . . 1 . 2 . Reactor . | . . . . . . . . Propulsion 21 | . . . 4 2 5 5 5 Treads . | . . . . . . . . Leg . | . . . . . . . . Wheel . | . . . . . . . . Hover . | . . . . . . . . Flight 21 | . . . 4 2 5 5 5 Utility 5 | . . . 1 1 2 1 . Device 4 | . . . 1 . 2 1 . Storage 1 | . . . . 1 . . . Processor . | . . . . . . . . Hackware . | . . . . . . . . Protection . | . . . . . . . . Artifact . | . . . . . . . . Weapon 4 | . . 1 1 . 1 1 . Energy Gun . | . . . . . . . . Energy Cannon . | . . . . . . . . Ballistic Gun 3 | . . . 1 . 1 1 . Ballistic Cannon . | . . . . . . . . Launcher 1 | . . 1 . . . . . Special Weapon . | . . . . . . . . Impact Weapon . | . . . . . . . . Slashing Weapon . | . . . . . . . . Piercing Weapon . | . . . . . . . . Special Melee Weapon . | . . . . . . . . Unidentified Prototypes 1 | . . . . . . 1 . Parts Lost 30 | . . . . 1 12 13 4 Power 2 | . . . . . 1 1 . Propulsion 20 | . . . . . 8 8 4 Utility 4 | . . . . . 2 2 . Weapon 4 | . . . . 1 1 2 . Highest Loss Streak 13 | . . . . 1 11 13 3 To Critical Strikes . | . . . . . . . . Average Backups 5 | 3 5 5 4 6 7 2 4 Power 3 | 1 2 2 1 4 2 2 4 Propulsion 1 | . . . . . 3 . . Utility . | . 1 1 1 . . . . Weapon . | 1 2 2 1 . . . . Tool/Special . | . . . . . . . . Unused Backups 5 | . 1 . . . 1 . 3 Power 4 | . . . . . 1 . 3 Propulsion . | . . . . . . . . Utility . | . . . . . . . . Weapon 1 | . 1 . . . . . . Tool/Special . | . . . . . . . . Average Slot Usage (%) 49 | . . . 52 90 83 50 5 Core 3 | . . . . 8 6 3 . Flight 27 | . . . 34 53 45 25 5 Device 7 | . . . 4 9 15 9 . Storage 3 | . . . . 7 7 5 . Ballistic Gun 2 | . . . 3 9 2 4 . Launcher 1 | . . . 1 1 4 . . Peak Build Rating 35 | . . 1 14 23 35 27 15 Average Rating 15 | . . . 10 21 25 20 5 On Entrance 6 | . . . . 13 22 12 1 Naked Turns 231 | . 100 42 4 . . 11 74 Heaviest Build 23 | . . . 11 17 23 16 . Greatest Support 33 | 3 3 3 16 24 30 33 19 Greatest Overweight (x) 1 | . . . . . . 1 . Average Overweight (x) . | . . . . . . . . Largest Inventory Capacity 8 | 5 5 5 5 8 8 8 5 Average Capacity 6 | 5 5 5 5 7 8 7 5 Most Carried 8 | 5 5 5 5 8 8 4 4 Average Carried 5 | 3 5 4 4 6 7 2 4 Final Capacity 8 | 5 5 5 5 8 8 5 5 Final Carried 8 | 5 5 5 5 8 4 4 4 Class Distribution -------------------- 61% | Sprinter 38% | Mutant Dominant Class ---------------- Mutant | -10/Materials Mutant | -10/Mines Sprinter | -9/Materials Sprinter | -8/Materials Sprinter | -7/Factory Sprinter | -6/Factory Mutant | -5/Factory Resources | -11 -10 -10 -9 -8 -7 -6 -5 ----------- Run | Yrd Mat Min Mat Mat Fac Fac Fac Matter Collected 387 | 200 . 14 12 33 52 53 23 Remotely . | . . . . . . . . Salvage Created 235 | . . 14 20 33 115 53 . Parts 26 | . . 4 4 7 6 5 . Haulers Intercepted . | . . . . . . . . Recyclers Shooed . | . . . . . . . . Parts Field Recycled . | . . . . . . . . Retrieved Matter . | . . . . . . . . Parts Self-Destructed . | . . . . . . . . Prevented . | . . . . . . . . Kills | -11 -10 -10 -9 -8 -7 -6 -5 ------- Run | Yrd Mat Min Mat Mat Fac Fac Fac Combat Hostiles Destroyed 13 | . . 3 3 4 1 2 . Guns 4 | . . . 1 . 1 2 . AOE 9 | . . 3 2 4 . . . Classes Destroyed 4 | . . 1 . . 3 . . Worker 2 | . . . . . 2 . . Builder 1 | . . . . . 1 . . Swarmer 12 | . . 3 3 4 . 2 . Sentry 1 | . . . . . 1 . . Best Kill Streak 4 | . . 3 3 4 4 1 . Combat Bots Only 4 | . . 3 3 4 1 1 . Max Kills in Single Turn 4 | . . 3 3 4 1 1 . Gunslinging . | . . . . . . . . Exploded 4 | . . 3 2 4 . . . Melee . | . . . . . . . . Uniques/NPCs Destroyed . | . . . . . . . . Combat | -11 -10 -10 -9 -8 -7 -6 -5 -------- Run | Yrd Mat Min Mat Mat Fac Fac Fac Hostile Shots Fired 365 | . . 1 7 19 115 129 94 Missed 162 | . . . 3 11 54 57 37 Hits 203 | . . 1 4 8 61 72 57 Melee 4 | . . . . . . . 4 Projectile 199 | . . 1 4 8 61 72 53 Critical Strikes 5 | . . . . 1 1 . 3 Damage Taken 2919 | . . 6 63 151 636 914 1149 Core 1567 | . . 6 24 . 138 388 1011 Absorbed by Shields . | . . . . . . . . Core Remaining (%) 87 | 100 . 97 94 100 80 54 . Volleys Fired 27 | . . 1 2 1 7 16 . Largest 2 | . . 1 2 2 2 1 . Hottest 53 | . . 30 50 50 53 23 . Shots Fired 32 | . . 1 4 2 9 16 . Gun 26 | . . . 2 1 7 16 . Cannon . | . . . . . . . . Launcher 6 | . . 1 2 1 2 . . Special . | . . . . . . . . Kinetic 26 | . . . 2 1 7 16 . Thermal . | . . . . . . . . Explosive 6 | . . 1 2 1 2 . . Electromagnetic . | . . . . . . . . Robot Hit Streak 5 | . . 1 1 1 4 5 . Robot Miss Streak 3 | . . . 3 1 1 3 . Penetration Max . | . . . . . . . . Secondary Targets . | . . . . . . . . Shots Hit Robots 19 | . . 1 1 1 7 9 . Core Hits 24 | . . 3 3 5 9 4 . Critical Kills . | . . . . . . . . Critical Parts Destroyed 1 | . . . . . 1 . . Critical Strikes 1 | . . . . . 1 . . Destroy 1 | . . . . . 1 . . Melee Attacks . | . . . . . . . . Impact . | . . . . . . . . Slashing . | . . . . . . . . Piercing . | . . . . . . . . Sneak Attacks . | . . . . . . . . Combat Hostiles . | . . . . . . . . Follow-up Attacks . | . . . . . . . . Damage Inflicted 814 | . . 118 144 152 252 148 . Guns 280 | . . . 23 . 109 148 . Cannons . | . . . . . . . . Explosions 534 | . . 118 121 152 143 . . Melee . | . . . . . . . . Ramming . | . . . . . . . . Kinetic 280 | . . . 23 . 109 148 . Thermal . | . . . . . . . . Explosive 534 | . . 118 121 152 143 . . Electromagnetic . | . . . . . . . . Impact . | . . . . . . . . Slashing . | . . . . . . . . Piercing . | . . . . . . . . Highest Corruption 1 | . . . 1 . . . . Average Corruption 1 | . . . 1 . . . . Corruption Purged . | . . . . . . . . Corruption Blocked . | . . . . . . . . Overload Shots . | . . . . . . . . Overflow Damage 34 | . . . 33 . 1 . . Projectiles . | . . . . . . . . Explosions 34 | . . . 33 . 1 . . Melee . | . . . . . . . . Knockbacks . | . . . . . . . . Impact . | . . . . . . . . Kinetic . | . . . . . . . . Secondary . | . . . . . . . . Self-Inflicted Damage 23 | . . . . . 23 . . Shots 2 | . . . . . 2 . . Rammed 1 | . . . . . . . 1 Targets Rammed 1 | . . . . . . . 1 Kicked . | . . . . . . . . Crushed . | . . . . . . . . Highest Temperature 354 | . . . 5 333 354 . 2 Average Temperature 130 | . . . 3 135 128 . 2 Received Heat Transfer 630 | . . . . 27 246 42 315 Effects 6 | . . . . 4 2 . . Shutdowns 1 | . . . . . 1 . . Energy Bleed 1 | . . . . 1 . . . Interference 4 | . . . . 3 1 . . Siege Activations . | . . . . . . . . Martial Activations . | . . . . . . . . Shielding Activations . | . . . . . . . . Robots Disrupted . | . . . . . . . . Combat Hostiles . | . . . . . . . . Robots Corrupted . | . . . . . . . . Combat Hostiles . | . . . . . . . . Parts Fried . | . . . . . . . . Impact Corruptions . | . . . . . . . . Robots Melted . | . . . . . . . . Combat Hostiles . | . . . . . . . . Parts Melted . | . . . . . . . . Heat Transferred . | . . . . . . . . Parts Sabotaged . | . . . . . . . . Parts Stolen . | . . . . . . . . Parts Stripped . | . . . . . . . . Power Chain Reactions . | . . . . . . . . Alert | -11 -10 -10 -9 -8 -7 -6 -5 ------- Run | Yrd Mat Min Mat Mat Fac Fac Fac Maximum Alert Level 1 | . . . . . . . 1 Low Security (%) 99 | 100 100 100 100 100 100 100 97 Level 1 . | . . . . . . . 2 Level 2 . | . . . . . . . . Level 3 . | . . . . . . . . Level 4 . | . . . . . . . . Level 5 . | . . . . . . . . High Security . | . . . . . . . . Max Security . | . . . . . . . . Peak Influence 211 | . . 81 119 151 115 30 211 Initial 63 | . . . 23 45 63 14 . Average 39 | . . 50 59 45 29 5 77 Influence Increases 1044 | . . 81 116 161 275 50 361 Destroy 0b10 Robot/C 260 | . . 60 60 80 20 40 . Destroy 0b10 Robot/NC 15 | . . . . . 15 . . Destroy Leader 50 | . . 10 10 10 10 10 . Successful Hack 46 | . . . 2 8 20 . 16 Destroy Structure 28 | . . 11 14 3 . . . Partial Spotted 105 | . . . 30 15 60 . . Lose Combat Pursuer 540 | . . . . 45 150 . 345 Influence Decreases 833 | . . 20 68 129 386 80 150 Entered New Map 196 | . . . 38 64 78 16 . Time Decay 375 | . . 20 30 55 126 34 110 Lost Part 147 | . . . . 10 67 30 40 Purge Threat 115 | . . . . . 115 . . Squads Dispatched 7 | . . . . 2 1 1 3 Investigation 5 | . . . . 1 1 . 3 Extermination . | . . . . . . . . Reinforcement 2 | . . . . 1 . 1 . Assault . | . . . . . . . . Garrison . | . . . . . . . . Intercept . | . . . . . . . . Searches Triggered . | . . . . . . . . Construction Impeded . | . . . . . . . . Haulers Reinforced . | . . . . . . . . Active Scanning Responses . | . . . . . . . . Cargo Convoy Interrupts . | . . . . . . . . Stealth | -11 -10 -10 -9 -8 -7 -6 -5 --------- Run | Yrd Mat Min Mat Mat Fac Fac Fac Distress Signals 2 | . 1 . . . . 1 . Communications Jammed . | . . . . . . . . Distress Signals . | . . . . . . . . Times Spotted 76 | . 1 2 6 16 16 7 28 Peak Tracking Total 12 | . 2 3 3 10 10 5 12 Tactical Retreats 9 | . . . . 1 3 . 5 Traps | -11 -10 -10 -9 -8 -7 -6 -5 ------- Run | Yrd Mat Min Mat Mat Fac Fac Fac Traps Triggered 1 | . . . 1 . . . . Indirectly . | . . . . . . . . Trap Hack Attempts . | . . . . . . . . Triggered . | . . . . . . . . Disarmed . | . . . . . . . . Reprogrammed . | . . . . . . . . Reused . | . . . . . . . . Traps Extracted . | . . . . . . . . Installed . | . . . . . . . . Triggered . | . . . . . . . . Machines | -11 -10 -10 -9 -8 -7 -6 -5 ---------- Run | Yrd Mat Min Mat Mat Fac Fac Fac Machines Disabled . | . . . . . . . . Max in Single Turn . | . . . . . . . . Machines Repaired . | . . . . . . . . Machines Dismantled . | . . . . . . . . Machines Sabotaged . | . . . . . . . . Overloaded Fab Kills . | . . . . . . . . Hacking | -11 -10 -10 -9 -8 -7 -6 -5 --------- Run | Yrd Mat Min Mat Mat Fac Fac Fac Machines Accessed 11 | . . . 2 3 2 . 4 Terminals 5 | . . . 1 2 1 . 1 Fabricators 3 | . . . . . . . 3 Repair Stations . | . . . . . . . . Recycling Units . | . . . . . . . . Scanalyzers 3 | . . . 1 1 1 . . Garrison Access . | . . . . . . . . Total Hacks 27 | . . . 4 9 7 . 7 Successful 16 | . . . 4 3 5 . 4 Failed 11 | . . . . 6 2 . 3 Catastrophic 2 | . . . . 1 1 . . Database Lockouts . | . . . . . . . . Manual 3 | . . . 2 . . . 1 Terminals 15 | . . . 2 8 4 . 1 Fabricators 6 | . . . . . . . 6 Repair Stations . | . . . . . . . . Recycling Units . | . . . . . . . . Scanalyzers 6 | . . . 2 1 3 . . Garrison Access . | . . . . . . . . Terminal Hacks 7 | . . . 2 2 3 . . Unreport Threat 1 | . . . . . 1 . . Locate Traps 1 | . . . 1 . . . . Recall Reinforcements 2 | . . . . 1 1 . . Zone Layout 3 | . . . 1 1 1 . . Fabricator Hacks 4 | . . . . . . . 4 Load Schematic 2 | . . . . . . . 2 Build 2 | . . . . . . . 2 Repair Station Hacks . | . . . . . . . . Recycling Unit Hacks . | . . . . . . . . Scanalyzer 5 | . . . 2 1 2 . . Insert Component 3 | . . . 1 1 1 . . Analyze 2 | . . . 1 . 1 . . Garrison Access Hacks . | . . . . . . . . Unauthorized Hacks . | . . . . . . . . Terminals . | . . . . . . . . Fabricators . | . . . . . . . . Repair Stations . | . . . . . . . . Recycling Units . | . . . . . . . . Scanalyzers . | . . . . . . . . Garrison Access . | . . . . . . . . Data Cores Recovered . | . . . . . . . . Used . | . . . . . . . . Hacking Detections 8 | . . . 1 2 2 . 3 Full Trace Events 5 | . . . . 1 1 . 3 Feedback Events . | . . . . . . . . Feedback Blocked . | . . . . . . . . Robot Schematics Acquired . | . . . . . . . . Robots Built . | . . . . . . . . Authchips . | . . . . . . . . Time . | . . . . . . . . Total Robot Build Rating . | . . . . . . . . Part Schematics Acquired 2 | . . . 1 . 1 . . Parts Built 4 | . . . . . . . 4 Authchips . | . . . . . . . . Time 115 | . . . . . . . 115 Total Part Build Rating 12 | . . . . . . . 12 Parts Repaired . | . . . . . . . . Time . | . . . . . . . . Parts Recycled . | . . . . . . . . Recycled Matter . | . . . . . . . . Retrieved Matter . | . . . . . . . . Retrieved Components . | . . . . . . . . Parts Scanalyzed 2 | . . . 1 . 1 . . Part Schematics Acquired 2 | . . . 1 . 1 . . Parts Damaged . | . . . . . . . . Bothacking | -11 -10 -10 -9 -8 -7 -6 -5 ------------ Run | Yrd Mat Min Mat Mat Fac Fac Fac Used RIF Installer . | . . . . . . . . Robots Hacked . | . . . . . . . . Non-combat . | . . . . . . . . Combat . | . . . . . . . . Robot Hacks Applied . | . . . . . . . . Relay Couplers Released . | . . . . . . . . Fabnet Peak Effective % . | . . . . . . . . Robots Rewired . | . . . . . . . . Allies Hacked . | . . . . . . . . Hacks Repelled . | . . . . . . . . Allies | -11 -10 -10 -9 -8 -7 -6 -5 -------- Run | Yrd Mat Min Mat Mat Fac Fac Fac Total Allies . | . . . . . . . . Largest Group . | . . . . . . . . Highest-Rated Group . | . . . . . . . . Highest-Rated Ally . | . . . . . . . . Total Orders . | . . . . . . . . Ally Attacks . | . . . . . . . . Total Damage . | . . . . . . . . Kills . | . . . . . . . . Allies Corrupted . | . . . . . . . . Allies Melted . | . . . . . . . . Intel | -11 -10 -10 -9 -8 -7 -6 -5 ------- Run | Yrd Mat Min Mat Mat Fac Fac Fac Active Infowar (turns) 433 | . . . 6 76 351 . . Sensors 433 | . . . 6 76 351 . . Robot Analysis Total . | . . . . . . . . Derelict Logs Recovered 2 | . . 2 . . . . . Drone Launches . | . . . . . . . . Drone Recoveries . | . . . . . . . . Exploration | -11 -10 -10 -9 -8 -7 -6 -5 ------------- Run | Yrd Mat Min Mat Mat Fac Fac Fac Turns Passed 1172 | 22 100 45 73 136 387 135 274 Spaces Moved 2101 | 34 197 83 181 386 590 273 357 Core 492 | 34 197 83 7 . . 25 146 Treads . | . . . . . . . . Legs . | . . . . . . . . Wheels . | . . . . . . . . Hover . | . . . . . . . . Flight 1609 | . . . 174 386 590 248 211 Fastest Speed 20 | 50 50 50 26 20 20 25 35 Average Speed 30 | 50 50 50 27 20 20 30 43 Slowest Speed 100 | 50 50 50 50 20 37 100 50 Overloaded Moves . | . . . . . . . . Propulsion Burnouts . | . . . . . . . . Robots Hopped 36 | . . . 2 4 17 4 9 Potential Cave-ins . | . . . . . . . . Cave-ins Triggered . | . . . . . . . . Exploration Rate (%) 19 | 2 27 21 22 47 20 7 10 Regions Visited 7 Branch Regions 1 Pre-discovered Areas . | . . . . . . . . Known Exits Taken . | . . . . . . . . Unknown Exits Taken 7 | 1 1 1 1 1 1 1 . Scrap Searched . | . . . . . . . . Spaces Dug . | . . . . . . . . Terrain Destroyed 36 | . . 11 22 3 . . . Melee . | . . . . . . . . Projectile . | . . . . . . . . AOE 36 | . . 11 22 3 . . . Terrain Rammed . | . . . . . . . . Walls Destroyed . | . . . . . . . . Machines Disabled . | . . . . . . . . Actions | -11 -10 -10 -9 -8 -7 -6 -5 --------- Run | Yrd Mat Min Mat Mat Fac Fac Fac Total 2552 | 38 198 85 195 440 828 303 465 Wait 390 | . . . 3 38 232 6 111 Move 2027 | 33 196 82 177 377 559 264 339 Hop 31 | . . . 1 4 13 4 9 Pick Up 22 | 5 1 . 2 10 2 2 . Fast Attach 17 | . . . 5 . 1 6 5 Attach 20 | . . 1 3 5 8 3 . Detach 5 | . . 1 1 1 2 . . Swap 5 | . . . 1 1 2 1 . Drop 7 | . 1 . . 3 2 1 . Fire 27 | . . 1 2 1 7 16 . Melee . | . . . . . . . . Ram 1 | . . . . . . . 1 Kick . | . . . . . . . . Crush . | . . . . . . . . Escape Stasis . | . . . . . . . . Rewire . | . . . . . . . . Trap . | . . . . . . . . Miscellaneous . | . . . . . . . . Route ------- -11/Scrapyard -10/Materials -10/Mines -9/Materials -8/Materials -7/Factory -6/Factory -5/Factory History --------- Turn | Location | Event 14 | -11/Scrapyard | Discovered new exit (range 15) 23 | -11/Scrapyard | Entered Materials 29 | -10/Materials | Discovered new exit (range 7) 123 | -10/Materials | Entered Mines 135 | -10/Mines | Discovered new exit (range 8) 149 | -10/Mines | Learned Materials garrison access intel 164 | -10/Mines | Learned Materials terminal intel 168 | -10/Mines | Entered Materials 168 | -9/Materials | Evolved 2 slots: Propulsion x2 169 | -9/Materials | Loaded intel: 12 terminal locations 238 | -9/Materials | Discovered new exit (range 10) 241 | -9/Materials | Entered another Materials area 241 | -8/Materials | Evolved 2 slots: Propulsion x2 242 | -8/Materials | Loaded intel: 1 garrison access location 375 | -8/Materials | Discovered new exit (range 10) 377 | -8/Materials | Entered Factory 377 | -7/Factory | Evolved 2 slots: Utility x2 474 | -7/Factory | Build established: Sprinter 737 | -7/Factory | Discovered new exit (range 15) 764 | -7/Factory | Entered another Factory area 764 | -6/Factory | Evolved 2 slots: Utility x2 790 | -6/Factory | Lost 11 parts (1p7n2u1w) 826 | -6/Factory | Discovered new exit (range 15) 899 | -6/Factory | Entered another Factory area 899 | -5/Factory | Evolved 2 slots: Utility x2 918 | -5/Factory | Lost 13 parts (1p8n2u2w) 919 | -5/Factory | Spotted B-75 Beast 963 | -5/Factory | Core integrity fell below 50% 1072 | -5/Factory | Fabricated Xenon Bombardment Thruster (x2) 1115 | -5/Factory | Fabricated VTOL Module (x2) 1130 | -5/Factory | Core integrity fell below 20% 1148 | -5/Factory | Lost 3 parts (3n) 1173 | -5/Factory | Destroyed by B-75 Beast with Magnetic Acceleration Cannon Last Messages --------------- Loaded successfully: VTOL Module Rating: 2 Time: 31 Initiate build sequence. >>Build Building VTOL Module... ETC: 31 ALERT: Unauthorized use of fabrication network. Dispatching investigation squad. [Achievement: Party Time] Field Propulsion Drive destroyed. Fabricator completes VTOL Module. Acquired VTOL Module. Xenon Bombardment Thruster destroyed. Acquired VTOL Module. VTOL Module severed. VTOL Module destroyed. Acquired 20 matter. Acquired 2 matter. Map ----- +----------------------------------------------------+ | ?????????????????????????# " # """" """" # | | ?????????????????????????# ### # """" """" # | | ??????????????????############## # """" """" # | | ??????????????????# ! ! # # # | | ??????????????????# # # [ # | | ??????????????????# """""" # ######/#+######## | | ??????????????????# = = """""" # #???## | | ??????????????????# """""" # % ##### | | ??????????????????# """""" +% "" + | | ??????????????????# """ # """ ##### | | ??????????????????# ""F """""" # R" #???# | | ??????????????????# "" """""" # """ #???# | | ??????????????????# """ """""" # #???# | | ??????????????????# """ """""" + ! #???# | | ??????????????????# ##### % ##### | | ??????????????????##############???# + | | ???????????????????????????????????# ##### | | ??????????????###########??????????# = #???# | | ??????????????# #??????????# ##### | | ??????????????# [ ############ !! ## ## | | ??????????????# ; !! | | ??????????????# """ """ # ! % | | ??????????????# """ """ + ABB % | | ??????????????# """ """ # BB !! | | ??????????????# # !! | | ??????????????# %@ ## ###### ########+ | | ??????????????#######+### #???????# #????? | | ??????????????????? k #???????####??? "" | | ????????????????? #????????????# "" | | ??????????????? #????????????# "" | | ????????????? #????????????# "" | | ??????????? #????????????# | | ??????????####+########## #????????????# | | ???????????? ??????????# #????????????# ?? | | ??????????? ???????????# #????????????# ??? | | ?????????? "????????????? +????????????# ????? | | ????????????????????????? #????????????#?????? | | ????????????????????????? #??????????????????? | | ????????????????????????? #??????????######### | | ?????????????????????????#####???????????# ] | | ?????????????????????????????????????????# | | ?????????????????????????????????????????# | | ?????????????????????????????????????????# | | ?????????????????????????????????????????# """ """ | | ?????????????????????????????????????????# """ """ | | ?????????????????????????????????????????# """ """ | | ?????????????????????????????????????????# | | ?????????????????????????????????????????#####+### | | ?????????????????????????????????????????????# ### | | ?????????????????????????????????????????????# | +----------------------------------------------------+ Best States ------------- Heat Dissipation 51 Energy Generation 18 Energy Capacity 250 Matter Stores 300 Matter Capacity 300 Sight Range 16 Robot Scan Range 15 Terrain Scan Density 10 Additional Mass Support 9 Evasion (%) 66 Item Schematics ----------------- VTOL Module | -9/Materials | Scanalyzed Xenon Bombardment Thruster | -7/Factory | Scanalyzed Robot Schematics ------------------ None Fabricated ------------ Xenon Bombardment Thruster | x2 | -5/Factory VTOL Module | x2 | -5/Factory Repaired ---------- Nothing Alien Tech Used ----------------- None Achievements -------------- Party Time Challenges ------------ None Game ------ Seed HugeTerrabombChronowheel Manual? 0 Play Time 00:32:51 Cumulative 15.2 hours Start 2025.08.17 @ 11:31:16 End 2025.08.17 @ 12:03:32 Sessions 1 Manual Loads 0 Difficulty Rogue Special Mode None Game No. 30 Rogue 30 Adventurer 0 Explorer 0 Win Type - Total 0 Types 0/0/0/0/0/0/0/0/0/0 Lore% 3 Gallery% 16 Achievement% 19 Wizard Run 0 Options --------- Layout 1 ASCII 1 Keyboard 0 Movement Numpad Keybinds 0 Fullscreen 1 Font 24/Cog Map View 50x35 Zoom Use 0% Tactical HUD 0 Map Filters NONE Filters NONE Steam 0 RUN: 5269cbd9-e15e-4d54-b906-3f442806c3d3